Workbook

Sheet 1. Info
AB1: Algoma Power Inc.
AB2: Atikokan Hydro Inc.
AB3: Attawapiskat Power Corporation
AB4: Bluewater Power Distribution Corporation
AB5: Brant County Power Inc.
AB6: Brantford Power Inc.
AB7: Burlington Hydro Inc.
AB8: Cambridge and North Dumfries Hydro Inc.
AB9: Canadian Niagara Power Inc.
AB10: Centre Wellington Hydro Ltd.
AB11: Chapleau Public Utilities Corporation
AB12: COLLUS PowerStream Corp.
A13: Drop-down lists are shaded blue; Input cells are shaded green. | AB13: Cooperative Hydro Embrun Inc.
AB14: E.L.K. Energy Inc.
C15: Utility Name | D15: Ottawa River Power Corporation | AB15: Enersource Hydro Mississauga Inc.
AB16: Entegrus Powerlines Inc.
C17: Service Territory | AB17: EnWin Utilities Ltd.
AB18: Erie Thames Powerlines Corporation
C19: Assigned EB Number | D19: EB-2014-0195 | AB19: Espanola Regional Hydro Distribution Corporation
AB20: Essex Powerlines Corporation
C21: Name and Title | D21: Jane Donnelly, Chief Financial Officer | AB21: Festival Hydro Inc.
AB22: Fort Albany Power Corporation
C23: Phone Number | D23: 613-732-3687 | AB23: Fort Frances Power Corporation
AB24: Greater Sudbury Hydro Inc.
C25: Email Address | D25: jdonnelly@orpowercorp.com | AB25: Grimsby Power Inc.
AB26: Guelph Hydro Electric Systems Inc.
C27: Date | D27: 2015-07-31 | AB27: Haldimand County Hydro Inc.
AB28: Halton Hills Hydro Inc.
C29: Last COS Re-based Year | D29: 2010 | AB29: Hearst Power Distribution Company Limited
AB30: Horizon Utilities Corporation
AB31: Hydro 2000 Inc.
AB32: Hydro Hawkesbury Inc.
AB33: Hydro One Brampton Networks Inc.
AB34: Hydro One Networks Inc.
AB35: Hydro One Remote Communities Inc.
AB36: Hydro Ottawa Limited
AB37: Innpower Corporation
AB38: Kashechewan Power Corporation
AB39: Kenora Hydro Electric Corporation Ltd.
AB40: Kingston Hydro Corporation
AB41: Kitchener-Wilmot Hydro Inc.
AB42: Lakefront Utilities Inc.
AB43: Lakeland Power Distribution Ltd.
AB44: London Hydro Inc.
AB45: Midland Power Utility Corporation
AB46: Milton Hydro Distribution Inc.
AB47: Newmarket-Tay Power Distribution Ltd.
AB48: Niagara Peninsula Energy Inc.
AB49: Niagara-on-the-Lake Hydro Inc.
AB50: Norfolk Power Distribution Inc.
AB51: North Bay Hydro Distribution Limited
AB52: Northern Ontario Wires Inc.
AB53: Oakville Hydro Electricity Distribution Inc.
AB54: Orangeville Hydro Limited
AB55: Orillia Power Distribution Corporation
AB56: Oshawa PUC Networks Inc.
AB57: Ottawa River Power Corporation
AB58: Peterborough Distribution Incorporated
AB59: PowerStream Inc.
AB60: PUC Distribution Inc.
AB61: Renfrew Hydro Inc.
AB62: Rideau St. Lawrence Distribution Inc.
AB63: Sioux Lookout Hydro Inc.
AB64: St. Thomas Energy Inc.
AB65: Thunder Bay Hydro Electricity Distribution Inc.
AB66: Tillsonburg Hydro Inc.
AB67: Toronto Hydro-Electric System Limited
AB68: Veridian Connections Inc.
AB69: Wasaga Distribution Inc.
AB70: Waterloo North Hydro Inc.
AB71: Welland Hydro-Electric System Corp.
AB72: Wellington North Power Inc.
AB73: West Coast Huron Energy Inc.
AB74: Westario Power Inc.
AB75: Whitby Hydro Electric Corporation
AB76: Woodstock Hydro Services Inc.

Sheet 2. Table of Contents
D20: 1. Info | I20: 6. Historical Wholesale
D22: 2. Table of Contents | I22: 7. Current Wholesale
D24: 3. Rate Classes | I24: 8. Forecast Wholesale
D26: 4. RRR Data | I26: 9. RTSR Rates to Forecast
D28: 5. UTRs and Sub-Transmission

Sheet 3. Rate Classes
C13: 1. Select the appropriate rate classes that appear on your most recent Board-Approved Tariff of Rates and Charges. 2. Enter the RTS Network and Connection Rate as it appears on the Tariff of Rates and Charges
C15: Rate Class | E15: Unit | G15: RTSR-Network | I15: RTSR-Connection
C17: Residential | E17: kWh | G17: 0.0063 | I17: 0.0045 | L17: =IF(OR(ISBLANK(C17), ISERROR(FIND("Choose", C17))=FALSE), 0, 1) -> 1 | M17: ="C" & ROW(C17) -> C17 | N17: =IF(OR(C17="General Service Intermediate Rate Class 1,000 To 4,999 kW (formerly General Service > 50 kW Customers)", C17="General Service Intermediate Rate Class 1,000 To 4,999 kW (formerly Large Use Customers)"), "x", "") ->  | W17: Choose Rate Class
C18: General Service Less Than 50 kW | E18: kWh | G18: 0.0058 | I18: 0.004 | L18: 1 | M18: C18 | N18: =IF(OR(C18="General Service Intermediate Rate Class 1,000 To 4,999 kW (formerly General Service > 50 kW Customers)", C18="General Service Intermediate Rate Class 1,000 To 4,999 kW (formerly Large Use Customers)"), "x", "") ->  | W18: Residential
C19: General Service 50 to 4,999 kW | E19: kW | G19: 2.3683 | I19: 1.5959 | L19: 1 | M19: C19 | W19: Residential Regular
C20: Sentinel Lighting | E20: kW | G20: 1.7951 | I20: 1.2596 | L20: 1 | M20: C20 | W20: Residential Urban
C21: Street Lighting | E21: kW | G21: 1.786 | I21: 1.2338 | L21: 1 | M21: C21 | W21: Residential Urban Year-Round
C22: Unmetered Scattered Load | E22: kWh | G22: 0.0058 | I22: 0.004 | L22: 1 | M22: C22 | W22: Residential Suburban
C23: Choose Rate Class | L23: 0 | M23: C23 | W23: Residential Suburban Seasonal
C24: Choose Rate Class | L24: 0 | M24: C24 | W24: Residential Suburban Year Round
C25: Choose Rate Class | L25: 0 | M25: C25 | W25: Residential - Time of Use
C26: Choose Rate Class | L26: 0 | M26: C26 | W26: Residential - Hensall
C27: Choose Rate Class | L27: 0 | M27: C27 | W27: Residential – High Density [R1]
C28: Choose Rate Class | L28: 0 | M28: C28 | W28: Residential – Normal Density [R2]
C29: Choose Rate Class | L29: 0 | M29: C29 | W29: Seasonal Residential – High Density [R3]
C30: Choose Rate Class | L30: 0 | M30: C30 | W30: Seasonal Residential – Normal Density [R4]
C31: Choose Rate Class | L31: 0 | M31: C31 | W31: Residential – Urban [UR]
C32: Choose Rate Class | L32: 0 | M32: C32 | W32: General Service Less Than 50 kW
C33: Choose Rate Class | L33: 0 | M33: C33 | W33: General Service Less Than 50 kW – Single Phase energy-billed [G1]
C34: Choose Rate Class | L34: 0 | M34: C34 | W34: General Service Less Than 50 kW – Three Phase energy-billed [G3]
C35: Choose Rate Class | L35: 0 | M35: C35 | W35: General Service Less Than 50 kW – Transmission Class energy-billed [T]
C36: Choose Rate Class | L36: 0 | M36: C36 | W36: General Service Less Than 50 kW – Urban energy-billed [UG]
C37: Choose Rate Class | L37: 0 | M37: C37 | W37: Westport Sewage Treatment Plant
C38: Choose Rate Class | L38: 0 | M38: C38 | W38: Small Commercial and USL - per meter
N39: =COUNTIF(N17:N38, "x") -> 0 | W39: Small Commercial and USL - per connection
W40: Farms – Single Phase energy-billed [F1]
W41: General Service 50 to 499 kW
W42: General Service 50 to 699 kW
W43: General Service 50 to 999 kW
W44: General Service 50 to 999 kW - Interval Metered
W45: General Service 50 to 1,000 kW
W46: General Service 50 to 1,000 kW - Interval Meters
W47: General Service 50 to 1,000 kW - Non Interval Meters
W48: General Service 50 to 1,499 kW
W49: General Service 50 to 1,499 kW - Interval Metered
W50: General Service 50 to 2,499 kW
W51: General Service 50 to 2,999 kW
W52: General Service 50 to 2,999 kW - Time of Use
W53: General Service 50 to 4,999 kW
W54: General Service 50 to 4,999 kW – Interval Metered
W55: General Service 50 to 4,999 kW - Time of Use
W56: General Service 50 to 4,999 kW (CoGeneration)
W57: General Service 50 to 4,999 kW (formerly Time of Use)
W58: General Service 500 to 4,999 kW
W59: General Service 700 to 4,999 kW
W60: General Service 1,000 to 2,999 kW
W61: General Service 1,000 to 4,999 kW
W62: General Service 1,000 to 4,999 kW - Interval Meters
W63: General Service 1,000 To 4,999 kW (co-generation)
W64: General Service Greater Than 1,000 kW
W65: General Service Intermediate Rate Class 1,000 To 4,999 kW (formerly Large Use Customers)
W66: General Service Intermediate Rate Class 1,000 To 4,999 kW (formerly General Service > 50 kW Customers)
W67: General Service 1,500 to 4,999 kW
W68: General Service Equal To Or Greater Than 1,500 kW
W69: General Service Equal To Or Greater Than 1,500 kW - Interval Metered
W70: General Service Intermediate 1,000 To 4,999 kW
W71: General Service 2,500 to 4,999 kW
W72: General Service 3,000 to 4,999 kW
W73: General Service 3,000 to 4,999 kW - Interval Metered
W74: General Service 3,000 to 4,999 kW - Intermediate Use
W75: General Service 3,000 to 4,999 kW - Time of Use
W76: Intermediate With Self Generation
W77: General Service - Commercial
W78: General Service - Institutional
W79: Farms – Three Phase energy-billed [F3]
W80: Large Use
W81: Large Use - Regular
W82: Large Use > 5000 kW
W83: Large Use - 3TS
W84: Large Use - Ford Annex
W85: Unmetered Scattered Load
W86: Sentinel Lighting
W87: Street Lighting
W88: Embedded Distributor
W89: Low Voltage Wheeling Charge Rate
W90: Stand-By
W91: Standby Power
W92: Standby Power – INTERIM APPROVAL
W93: Standby Power - APPROVED ON AN INTERIM BASIS
W94: Standby - General Service 50 - 1,000 kW
W95: Standby Power General Service 50 to 1,499 kW
W96: Standby - General Service 1,000 - 5,000 kW
W97: Standby Power General Service 1,500 to 4,999 kW
W98: Standby - Large Use
W99: Standby Power General Service Large Use
W100: Standby Distribution Service

Sheet 4. RRR Data
B15: Rate Class | C15: Rate Description | D15: Unit | E15: Rate | F15: Non-Loss Adjusted Metered kWh | G15: Non-Loss Adjusted Metered kW | H15: Applicable Loss Factor eg: (1.0325) | I15: Loss Adjusted Billed kWh
B17: Residential | C17: RTSR - Network | D17: kWh | E17: 0.0063 | F17: 79483998.23 | H17: 1.039 | I17: =F17*H17 -> 82583874.16
B18: Residential | C18: RTSR - Connection | D18: kWh | E18: 0.0045 | F18: 79483998.23 | H18: 1.039 | I18: =F18*H18 -> 82583874.16
B19: General Service Less Than 50 kW | C19: RTSR - Network | D19: kWh | E19: 0.0058 | F19: 31649726.12 | H19: 1.039 | I19: =F19*H19 -> 32884065.44
B20: General Service Less Than 50 kW | C20: RTSR - Connection | D20: kWh | E20: 0.004 | F20: 31649726.12 | H20: 1.039 | I20: =F20*H20 -> 32884065.44
B21: General Service 50 to 4,999 kW | C21: RTSR - Network | D21: kW | E21: 2.3683 | F21: 72512848.98 | G21: 206399
B22: General Service 50 to 4,999 kW | C22: RTSR - Connection | D22: kW | E22: 1.5959 | F22: 72512849 | G22: 206399
B23: Sentinel Lighting | C23: RTSR - Network | D23: kW | E23: 1.7951 | F23: 245570.47 | G23: 700
B24: Sentinel Lighting | C24: RTSR - Connection | D24: kW | E24: 1.2596 | F24: 245570.47 | G24: 700
B25: Street Lighting | C25: RTSR - Network | D25: kW | E25: 1.786 | F25: 2404816.87 | G25: 6866
B26: Street Lighting | C26: RTSR - Connection | D26: kW | E26: 1.2338 | F26: 2404816.87 | G26: 6866
B27: Unmetered Scattered Load | C27: RTSR - Network | D27: kWh | E27: 0.0058 | F27: 454406.25 | H27: 1.039 | I27: =F27*H27 -> 472128.0937
B28: Unmetered Scattered Load | C28: RTSR - Connection | D28: kWh | E28: 0.004 | F28: 454406.25 | H28: 1.039 | I28: =F28*H28 -> 472128.0937

Sheet 5. UTRs and Sub-Transmission
B18: Uniform Transmission Rates | C18: Unit | E18: Effective January 1, 2014 | G18: Effective January 1, 2015 | I18: Effective January 1, 2016
B20: Rate Description | E20: Rate | G20: Rate | I20: Rate
B22: Network Service Rate | C22: kW | E22: 3.82 | G22: 3.78 | I22: 3.78
B24: Line Connection Service Rate | C24: kW | E24: 0.82 | G24: 0.86 | I24: 0.86
B26: Transformation Connection Service Rate | C26: kW | E26: 1.98 | G26: 2 | I26: 2
B29: Hydro One Sub-Transmission Rates | C29: Unit | E29: Effective January 1, 2014 | G29: Effective January 1, 2015 | I29: Effective January 1, 2016
B33: Rate Description | E33: Rate | G33: Rate | I33: Rate
B35: Network Service Rate | C35: kW | E35: 3.23 | G35: 3.41 | I35: 3.3396
B37: Line Connection Service Rate | C37: kW | E37: 0.65 | G37: 0.79 | I37: 0.7791
B39: Transformation Connection Service Rate | C39: kW | E39: 1.62 | G39: 1.8 | I39: 1.7713
B41: Both Line and Transformation Connection Service Rate | C41: kW | E41: =SUM(E37,E39) -> 2.27 | G41: =SUM(G37,G39) -> 2.59 | I41: =I39+I37 -> 2.5504
B44: Brookfield Energy | C44: Unit | E44: Effective January 1, 2014 | G44: Effective January 1, 2015 | I44: Effective January 1, 2016
B48: Rate Description | E48: Rate | G48: Rate | I48: Rate
B50: Network Service Rate | C50: kW | E50: 2.75 | G50: 3 | I50: =(+I35+I37+I39)/2 -> 2.945
B52: Line Connection Service Rate | C52: kW
B54: Transformation Connection Service Rate | C54: kW
B56: Both Line and Transformation Connection Service Rate | C56: kW | E56: =SUM(E52,E54) -> 0 | G56: =SUM(G52,G54) -> 0 | I56: =I54+I52 -> 0
B59: If needed, add extra host here. (II) | C59: Unit | E59: Effective January 1, 2014 | G59: Effective January 1, 2015 | I59: Effective January 1, 2016
B63: Rate Description | E63: Rate | G63: Rate | I63: Rate
B65: Network Service Rate | C65: kW
B67: Line Connection Service Rate | C67: kW
B69: Transformation Connection Service Rate | C69: kW
B71: Both Line and Transformation Connection Service Rate | C71: kW | E71: =SUM(E67,E69) -> 0 | G71: =SUM(G67,G69) -> 0 | I71: =I69+I67 -> 0
B75: Hydro One Sub-Transmission Rate Rider 9A | C75: Unit | E75: Effective January 1, 2014 | G75: Effective January 1, 2015 | I75: Effective January 1, 2016
B77: Rate Description | E77: Rate | G77: Rate | I77: Rate
B79: RSVA Transmission network – 4714 – which affects 1584 | C79: kW | E79: 0.1465 | G79: 0 | I79: 0
B81: RSVA Transmission connection – 4716 – which affects 1586 | C81: kW | E81: 0.0667 | G81: 0 | I81: 0
B83: RSVA LV – 4750 – which affects 1550 | C83: kW | E83: 0.0475 | G83: 0 | I83: 0
B85: RARA 1 – 2252 – which affects 1590 | C85: kW | E85: 0.0419 | G85: 0 | I85: 0
B87: RARA 1 – 2252 – which affects 1590 (2008) | C87: kW | E87: -0.027 | G87: 0 | I87: 0
B89: RARA 1 – 2252 – which affects 1590 (2009) | C89: kW | E89: -0.0006 | G89: 0 | I89: 0
B91: Hydro One Sub-Transmission Rate Rider 9A | C91: kW | E91: 0.275 | G91: 0 | I91: =SUM(I79:I89) -> 0
E94: Historical 2014 | G94: Current 2015 | I94: Forecast 2016
B95: Low Voltage Switchgear Credit (if applicable, enter as a negative value) | C95: $

Sheet 6. Historical Wholesale
B21: IESO | D21: Network | H21: Line Connection | L21: Transformation Connection | P21: Total Line
B22: Month | D22: Units Billed | E22: Rate | F22: Amount | H22: Units Billed | I22: Rate | J22: Amount | L22: Units Billed | M22: Rate | N22: Amount | P22: Amount
B24: January | E24: =IF(D24<>0,F24/D24,0) -> 0 | I24: =IF(H24<>0,J24/H24,0) -> 0 | M24: =IF(L24<>0,N24/L24,0) -> 0 | P24: =J24+N24 -> 0
B25: February | E25: =IF(D25<>0,F25/D25,0) -> 0 | I25: =IF(H25<>0,J25/H25,0) -> 0 | M25: =IF(L25<>0,N25/L25,0) -> 0 | P25: 0
B26: March | E26: 0 | I26: 0 | M26: 0 | P26: 0
B27: April | E27: 0 | I27: 0 | M27: 0 | P27: 0
B28: May | E28: 0 | I28: 0 | M28: 0 | P28: 0
B29: June | E29: 0 | I29: 0 | M29: 0 | P29: 0
B30: July | E30: 0 | I30: 0 | M30: 0 | P30: 0
B31: August | E31: 0 | I31: 0 | M31: 0 | P31: 0
B32: September | E32: 0 | I32: 0 | M32: 0 | P32: 0
B33: October | E33: 0 | I33: 0 | M33: 0 | P33: 0
B34: November | E34: 0 | I34: 0 | M34: 0 | P34: 0
B35: December | E35: 0 | I35: 0 | M35: 0 | P35: 0
B37: Total | D37: =SUM(D24:D35) -> 0 | E37: =IF(D37<>0,F37/D37,0) -> 0 | F37: =SUM(F24:F35) -> 0 | H37: =SUM(H24:H35) -> 0 | I37: =IF(H37<>0,J37/H37,0) -> 0 | J37: =SUM(J24:J35) -> 0 | L37: =SUM(L24:L35) -> 0 | M37: =IF(L37<>0,N37/L37,0) -> 0 | N37: =SUM(N24:N35) -> 0 | P37: =SUM(P24:P35) -> 0
B39: Hydro One | D39: Network | H39: Line Connection | L39: Transformation Connection | P39: Total Line
B41: Month | D41: Units Billed | E41: Rate | F41: Amount | H41: Units Billed | I41: Rate | J41: Amount | L41: Units Billed | M41: Rate | N41: Amount | P41: Amount
B43: January | D43: 46951.93498 | E43: 3.23 | F43: 151654.75 | H43: 46951.95385 | I43: =IF(H43<>0,J43/H43,0) -> 0.65 | J43: 30518.77 | L43: 46951.93827 | M43: =IF(L43<>0,N43/L43,0) -> 1.62 | N43: 76062.14 | P43: =J43+N43 -> 106580.91
B44: February | D44: 31523.42724 | E44: 3.23 | F44: 101820.67 | H44: 32751 | I44: =IF(H44<>0,J44/H44,0) -> 0.65 | J44: 21288.15 | L44: 32751 | M44: =IF(L44<>0,N44/L44,0) -> 1.62 | N44: 53056.62 | P44: 74344.77
B45: March | D45: 29947.57276 | E45: 3.23 | F45: 96730.66 | H45: 30188.19 | I45: 0.65 | J45: 19622.3235 | L45: 30188.19 | M45: 1.62 | N45: 48904.8678 | P45: 68527.1913
B46: April | D46: 19641.97833 | E46: 3.23 | F46: 63443.59 | H46: 21442.5 | I46: 0.65 | J46: 13937.625 | L46: 21442.5 | M46: 1.62 | N46: 34736.85 | P46: 48674.475
B47: May | D47: 16885.8452 | E47: 3.23 | F47: 54541.28 | H47: 18122.45 | I47: 0.65 | J47: 11779.5925 | L47: 18122.45 | M47: 1.62 | N47: 29358.369 | P47: 41137.9615
B48: June | D48: 25680.6904 | E48: 3.23 | F48: 82948.63 | H48: 27093.55 | I48: 0.65 | J48: 17610.8075 | L48: 27093.55 | M48: 1.62 | N48: 43891.551 | P48: 61502.3585
B49: July | D49: 22833.10217 | E49: 3.23 | F49: 73750.92 | H49: 22833.1 | I49: 0.65 | J49: 14841.515 | L49: 22833.1 | M49: 1.62 | N49: 36989.622 | P49: 51831.137
B50: August | D50: 26864.34365 | E50: 3.23 | F50: 86771.83 | H50: 27520.34 | I50: 0.65 | J50: 17888.221 | L50: 27520.34 | M50: 1.62 | N50: 44582.9508 | P50: 62471.1718
B51: September | D51: 20613.48916 | E51: 3.23 | F51: 66581.57 | H51: 21835.48 | I51: 0.65 | J51: 14193.062 | L51: 21835.48 | M51: 1.62 | N51: 35373.4776 | P51: 49566.5396
B52: October | D52: 22332.0031 | E52: 3.23 | F52: 72132.37 | H52: 22945.6 | I52: 0.65 | J52: 14914.64 | L52: 22945.6 | M52: 1.62 | N52: 37171.872 | P52: 52086.512
B53: November | D53: 28753.94737 | E53: 3.23 | F53: 92875.25 | H53: 30303.34 | I53: 0.65 | J53: 19697.171 | L53: 30303.34 | M53: 1.62 | N53: 49091.4108 | P53: 68788.5818
B54: December | D54: 30754.12384 | E54: 3.23 | F54: 99335.82 | H54: 31007.18 | I54: 0.65 | J54: 20154.667 | L54: 31007.18 | M54: 1.62 | N54: 50231.6316 | P54: 70386.2986
B56: Total | D56: =SUM(D43:D54) -> 322782.4582 | E56: =IF(D56<>0,F56/D56,0) -> 3.23 | F56: =SUM(F43:F54) -> 1042587.34 | H56: =SUM(H43:H54) -> 332994.6838 | I56: =IF(H56<>0,J56/H56,0) -> 0.65 | J56: =SUM(J43:J54) -> 216446.5445 | L56: =SUM(L43:L54) -> 332994.6683 | M56: =IF(L56<>0,N56/L56,0) -> 1.62 | N56: =SUM(N43:N54) -> 539451.3626 | P56: =SUM(P43:P54) -> 755897.9071
B58: Brookfield | D58: Network | H58: Line Connection | L58: Transformation Connection | P58: Total Line
B59: (if needed)
B60: Month | D60: Units Billed | E60: Rate | F60: Amount | H60: Units Billed | I60: Rate | J60: Amount | L60: Units Billed | M60: Rate | N60: Amount | P60: Amount
B62: January | D62: 846 | E62: =IF(D62<>0,F62/D62,0) -> 2.755 | F62: 2330.73 | I62: =IF(H62<>0,J62/H62,0) -> 0 | M62: =IF(L62<>0,N62/L62,0) -> 0 | P62: =J62+N62 -> 0
B63: February | D63: 0 | E63: 0 | F63: 0 | I63: 0 | M63: 0 | P63: 0
B64: March | D64: 576 | E64: 2.755 | F64: 1586.88 | I64: 0 | M64: 0 | P64: 0
B65: April | D65: 792 | E65: 2.755 | F65: 2181.96 | I65: 0 | M65: 0 | P65: 0
B66: May | D66: 816 | E66: 2.75 | F66: 2244 | I66: 0 | M66: 0 | P66: 0
B67: June | D67: 6738 | E67: 2.75 | F67: 18529.5 | I67: 0 | M67: 0 | P67: 0
B68: July | D68: 1800 | E68: 2.75 | F68: 4950 | I68: 0 | M68: 0 | P68: 0
B69: August | D69: 2928 | E69: 2.75 | F69: 8052 | I69: 0 | M69: 0 | P69: 0
B70: September | D70: 3324 | E70: 2.75 | F70: 9141 | I70: 0 | M70: 0 | P70: 0
B71: October | D71: 3012 | E71: 2.75 | F71: 8283 | I71: 0 | M71: 0 | P71: 0
B72: November | D72: 0 | E72: 0 | F72: 0 | I72: 0 | M72: 0 | P72: 0
B73: December | D73: 396 | E73: 2.75 | F73: 1089 | I73: 0 | M73: 0 | P73: 0
B75: Total | D75: =SUM(D62:D73) -> 21228 | E75: =IF(D75<>0,F75/D75,0) -> 2.750521481 | F75: =SUM(F62:F73) -> 58388.07 | H75: =SUM(H62:H73) -> 0 | I75: =IF(H75<>0,J75/H75,0) -> 0 | J75: =SUM(J62:J73) -> 0 | L75: =SUM(L62:L73) -> 0 | M75: =IF(L75<>0,N75/L75,0) -> 0 | N75: =SUM(N62:N73) -> 0 | P75: =SUM(P62:P73) -> 0
B77: Add Extra Host Here (II) | D77: Network | H77: Line Connection | L77: Transformation Connection | P77: Total Line
B78: (if needed)
B79: Month | D79: Units Billed | E79: Rate | F79: Amount | H79: Units Billed | I79: Rate | J79: Amount | L79: Units Billed | M79: Rate | N79: Amount | P79: Amount
B81: January | E81: =IF(D81<>0,F81/D81,0) -> 0 | I81: =IF(H81<>0,J81/H81,0) -> 0 | M81: =IF(L81<>0,N81/L81,0) -> 0 | P81: =J81+N81 -> 0
B82: February | E82: 0 | I82: 0 | M82: 0 | P82: 0
B83: March | E83: 0 | I83: 0 | M83: 0 | P83: 0
B84: April | E84: 0 | I84: 0 | M84: 0 | P84: 0
B85: May | E85: 0 | I85: 0 | M85: 0 | P85: 0
B86: June | E86: 0 | I86: 0 | M86: 0 | P86: 0
B87: July | E87: 0 | I87: 0 | M87: 0 | P87: 0
B88: August | E88: 0 | I88: 0 | M88: 0 | P88: 0
B89: September | E89: 0 | I89: 0 | M89: 0 | P89: 0
B90: October | E90: 0 | I90: 0 | M90: 0 | P90: 0
B91: November | E91: 0 | I91: 0 | M91: 0 | P91: 0
B92: December | E92: 0 | I92: 0 | M92: 0 | P92: 0
B94: Total | D94: =SUM(D81:D92) -> 0 | E94: =IF(D94<>0,F94/D94,0) -> 0 | F94: =SUM(F81:F92) -> 0 | H94: =SUM(H81:H92) -> 0 | I94: =IF(H94<>0,J94/H94,0) -> 0 | J94: =SUM(J81:J92) -> 0 | L94: =SUM(L81:L92) -> 0 | M94: =IF(L94<>0,N94/L94,0) -> 0 | N94: =SUM(N81:N92) -> 0 | P94: =SUM(P81:P92) -> 0
B96: Total | D96: Network | H96: Line Connection | L96: Transformation Connection | P96: Total Line
B98: Month | D98: Units Billed | E98: Rate | F98: Amount | H98: Units Billed | I98: Rate | J98: Amount | L98: Units Billed | M98: Rate | N98: Amount | P98: Amount
B100: January | D100: =D24+D43+D62+D81 -> 47797.93498 | E100: =IF(D100<>0,F100/D100,0) -> 3.221592733 | F100: =F24+F43+F62+F81 -> 153985.48 | H100: =H24+H43+H62+H81 -> 46951.95385 | I100: =IF(H100<>0,J100/H100,0) -> 0.65 | J100: =J24+J43+J62+J81 -> 30518.77 | L100: =L24+L43+L62+L81 -> 46951.93827 | M100: =IF(L100<>0,N100/L100,0) -> 1.62 | N100: =N24+N43+N62+N81 -> 76062.14 | P100: =J100+N100 -> 106580.91
B101: February | D101: =D25+D44+D63+D82 -> 31523.42724 | E101: 3.23 | F101: =F25+F44+F63+F82 -> 101820.67 | H101: =H25+H44+H63+H82 -> 32751 | I101: 0.65 | J101: =J25+J44+J63+J82 -> 21288.15 | L101: =L25+L44+L63+L82 -> 32751 | M101: 1.62 | N101: =N25+N44+N63+N82 -> 53056.62 | P101: 74344.77
B102: March | D102: 30523.57276 | E102: 3.221036436 | F102: 98317.54 | H102: 30188.19 | I102: 0.65 | J102: 19622.3235 | L102: 30188.19 | M102: 1.62 | N102: 48904.8678 | P102: 68527.1913
B103: April | D103: 20433.97833 | E103: 3.211589488 | F103: 65625.55 | H103: 21442.5 | I103: 0.65 | J103: 13937.625 | L103: 21442.5 | M103: 1.62 | N103: 34736.85 | P103: 48674.475
B104: May | D104: 17701.8452 | E104: 3.207873493 | F104: 56785.28 | H104: 18122.45 | I104: 0.65 | J104: 11779.5925 | L104: 18122.45 | M104: 1.62 | N104: 29358.369 | P104: 41137.9615
B105: June | D105: 32418.6904 | E105: 3.130235328 | F105: 101478.13 | H105: 27093.55 | I105: 0.65 | J105: 17610.8075 | L105: 27093.55 | M105: 1.62 | N105: 43891.551 | P105: 61502.3585
B106: July | D106: 24633.10217 | E106: 3.194925246 | F106: 78700.92 | H106: 22833.1 | I106: 0.65 | J106: 14841.515 | L106: 22833.1 | M106: 1.62 | N106: 36989.622 | P106: 51831.137
B107: August | D107: 29792.34365 | E107: 3.182825464 | F107: 94823.83 | H107: 27520.34 | I107: 0.65 | J107: 17888.221 | L107: 27520.34 | M107: 1.62 | N107: 44582.9508 | P107: 62471.1718
B108: September | D108: 23937.48916 | E108: 3.163346393 | F108: 75722.57 | H108: 21835.48 | I108: 0.65 | J108: 14193.062 | L108: 21835.48 | M108: 1.62 | N108: 35373.4776 | P108: 49566.5396
B109: October | D109: 25344.0031 | E109: 3.172954552 | F109: 80415.37 | H109: 22945.6 | I109: 0.65 | J109: 14914.64 | L109: 22945.6 | M109: 1.62 | N109: 37171.872 | P109: 52086.512
B110: November | D110: 28753.94737 | E110: 3.23 | F110: 92875.25 | H110: 30303.34 | I110: 0.65 | J110: 19697.171 | L110: 30303.34 | M110: 1.62 | N110: 49091.4108 | P110: 68788.5818
B111: December | D111: 31150.12384 | E111: 3.223897938 | F111: 100424.82 | H111: 31007.18 | I111: 0.65 | J111: 20154.667 | L111: 31007.18 | M111: 1.62 | N111: 50231.6316 | P111: 70386.2986
B113: Total | D113: =SUM(D100:D111) -> 344010.4582 | E113: =IF(D113<>0,F113/D113,0) -> 3.200412615 | F113: =SUM(F100:F111) -> 1100975.41 | H113: =SUM(H100:H111) -> 332994.6838 | I113: =IF(H113<>0,J113/H113,0) -> 0.65 | J113: =SUM(J100:J111) -> 216446.5445 | L113: =SUM(L100:L111) -> 332994.6683 | M113: =IF(L113<>0,N113/L113,0) -> 1.62 | N113: =SUM(N100:N111) -> 539451.3626 | P113: =SUM(P100:P111) -> 755897.9071
N115: Low Voltage Switchgear Credit (if applicable) | P115: ='5. UTRs and Sub-Transmission'!E95 -> 0
N117: Total including deduction for Low Voltage Switchgear Credit | P117: =P113+P115 -> 755897.9071

Sheet 7. Current Wholesale
B13: The purpose of this sheet is to calculate the expected billing when current 2015 Uniform Transmission Rates are applied against historical 2014 transmission units.
B20: IESO | D20: Network | H20: Line Connection | L20: Transformation Connection | P20: Total Line
B22: Month | D22: Units Billed | E22: Rate | F22: Amount | H22: Units Billed | I22: Rate | J22: Amount | L22: Units Billed | M22: Rate | N22: Amount | P22: Amount
B24: January | D24: ='6. Historical Wholesale'!D24 -> 0 | E24: ='5. UTRs and Sub-Transmission'!G22 -> 3.78 | F24: =D24*E24 -> 0 | H24: ='6. Historical Wholesale'!H24 -> 0 | I24: ='5. UTRs and Sub-Transmission'!G24 -> 0.86 | J24: =H24*I24 -> 0 | L24: ='6. Historical Wholesale'!L24 -> 0 | M24: ='5. UTRs and Sub-Transmission'!G26 -> 2 | N24: =L24*M24 -> 0 | P24: =J24+N24 -> 0
B25: February | D25: ='6. Historical Wholesale'!D25 -> 0 | E25: =E24 -> 3.78 | F25: =D25*E25 -> 0 | H25: ='6. Historical Wholesale'!H25 -> 0 | I25: =I24 -> 0.86 | J25: =H25*I25 -> 0 | L25: ='6. Historical Wholesale'!L25 -> 0 | M25: =M24 -> 2 | N25: =L25*M25 -> 0 | P25: 0
B26: March | D26: ='6. Historical Wholesale'!D26 -> 0 | E26: =E25 -> 3.78 | F26: 0 | H26: ='6. Historical Wholesale'!H26 -> 0 | I26: =I25 -> 0.86 | J26: 0 | L26: ='6. Historical Wholesale'!L26 -> 0 | M26: =M25 -> 2 | N26: 0 | P26: 0
B27: April | D27: ='6. Historical Wholesale'!D27 -> 0 | E27: 3.78 | F27: 0 | H27: ='6. Historical Wholesale'!H27 -> 0 | I27: 0.86 | J27: 0 | L27: ='6. Historical Wholesale'!L27 -> 0 | M27: 2 | N27: 0 | P27: 0
B28: May | D28: ='6. Historical Wholesale'!D28 -> 0 | E28: 3.78 | F28: 0 | H28: ='6. Historical Wholesale'!H28 -> 0 | I28: 0.86 | J28: 0 | L28: ='6. Historical Wholesale'!L28 -> 0 | M28: 2 | N28: 0 | P28: 0
B29: June | D29: ='6. Historical Wholesale'!D29 -> 0 | E29: 3.78 | F29: 0 | H29: ='6. Historical Wholesale'!H29 -> 0 | I29: 0.86 | J29: 0 | L29: ='6. Historical Wholesale'!L29 -> 0 | M29: 2 | N29: 0 | P29: 0
B30: July | D30: ='6. Historical Wholesale'!D30 -> 0 | E30: 3.78 | F30: 0 | H30: ='6. Historical Wholesale'!H30 -> 0 | I30: 0.86 | J30: 0 | L30: ='6. Historical Wholesale'!L30 -> 0 | M30: 2 | N30: 0 | P30: 0
B31: August | D31: ='6. Historical Wholesale'!D31 -> 0 | E31: 3.78 | F31: 0 | H31: ='6. Historical Wholesale'!H31 -> 0 | I31: 0.86 | J31: 0 | L31: ='6. Historical Wholesale'!L31 -> 0 | M31: 2 | N31: 0 | P31: 0
B32: September | D32: ='6. Historical Wholesale'!D32 -> 0 | E32: 3.78 | F32: 0 | H32: ='6. Historical Wholesale'!H32 -> 0 | I32: 0.86 | J32: 0 | L32: ='6. Historical Wholesale'!L32 -> 0 | M32: 2 | N32: 0 | P32: 0
B33: October | D33: ='6. Historical Wholesale'!D33 -> 0 | E33: 3.78 | F33: 0 | H33: ='6. Historical Wholesale'!H33 -> 0 | I33: 0.86 | J33: 0 | L33: ='6. Historical Wholesale'!L33 -> 0 | M33: 2 | N33: 0 | P33: 0
B34: November | D34: ='6. Historical Wholesale'!D34 -> 0 | E34: 3.78 | F34: 0 | H34: ='6. Historical Wholesale'!H34 -> 0 | I34: 0.86 | J34: 0 | L34: ='6. Historical Wholesale'!L34 -> 0 | M34: 2 | N34: 0 | P34: 0
B35: December | D35: ='6. Historical Wholesale'!D35 -> 0 | E35: 3.78 | F35: 0 | H35: ='6. Historical Wholesale'!H35 -> 0 | I35: 0.86 | J35: 0 | L35: ='6. Historical Wholesale'!L35 -> 0 | M35: 2 | N35: 0 | P35: 0
B37: Total | D37: =SUM(D24:D35) -> 0 | E37: =IF(D37<>0,F37/D37,0) -> 0 | F37: =SUM(F24:F35) -> 0 | H37: =SUM(H24:H35) -> 0 | I37: =IF(H37<>0,J37/H37,0) -> 0 | J37: =SUM(J24:J35) -> 0 | L37: =SUM(L24:L35) -> 0 | M37: =IF(L37<>0,N37/L37,0) -> 0 | N37: =SUM(N24:N35) -> 0 | P37: =SUM(P24:P35) -> 0
B39: Hydro One | D39: Network | H39: Line Connection | L39: Transformation Connection | P39: Total Line
B41: Month | D41: Units Billed | E41: Rate | F41: Amount | H41: Units Billed | I41: Rate | J41: Amount | L41: Units Billed | M41: Rate | N41: Amount | P41: Amount
B43: January | D43: ='6. Historical Wholesale'!D43 -> 46951.93498 | E43: ='5. UTRs and Sub-Transmission'!G35+'5. UTRs and Sub-Transmission'!G79 -> 3.41 | F43: =D43*E43 -> 160106.0983 | H43: ='6. Historical Wholesale'!H43 -> 46951.95385 | I43: ='5. UTRs and Sub-Transmission'!G37+'5. UTRs and Sub-Transmission'!G81 -> 0.79 | J43: =H43*I43 -> 37092.04354 | L43: ='6. Historical Wholesale'!L43 -> 46951.93827 | M43: ='5. UTRs and Sub-Transmission'!G39 -> 1.8 | N43: =L43*M43 -> 84513.48889 | P43: =J43+N43 -> 121605.5324
B44: February | D44: ='6. Historical Wholesale'!D44 -> 31523.42724 | E44: =E43 -> 3.41 | F44: =D44*E44 -> 107494.8869 | H44: ='6. Historical Wholesale'!H44 -> 32751 | I44: =I43 -> 0.79 | J44: =H44*I44 -> 25873.29 | L44: ='6. Historical Wholesale'!L44 -> 32751 | M44: =M43 -> 1.8 | N44: =L44*M44 -> 58951.8 | P44: 84825.09
B45: March | D45: ='6. Historical Wholesale'!D45 -> 29947.57276 | E45: =E44 -> 3.41 | F45: 102121.2231 | H45: ='6. Historical Wholesale'!H45 -> 30188.19 | I45: =I44 -> 0.79 | J45: 23848.6701 | L45: ='6. Historical Wholesale'!L45 -> 30188.19 | M45: =M44 -> 1.8 | N45: 54338.742 | P45: 78187.4121
B46: April | D46: ='6. Historical Wholesale'!D46 -> 19641.97833 | E46: 3.41 | F46: 66979.1461 | H46: ='6. Historical Wholesale'!H46 -> 21442.5 | I46: 0.79 | J46: 16939.575 | L46: ='6. Historical Wholesale'!L46 -> 21442.5 | M46: =M45 -> 1.8 | N46: 38596.5 | P46: 55536.075
B47: May | D47: ='6. Historical Wholesale'!D47 -> 16885.8452 | E47: 3.41 | F47: 57580.73214 | H47: ='6. Historical Wholesale'!H47 -> 18122.45 | I47: 0.79 | J47: 14316.7355 | L47: ='6. Historical Wholesale'!L47 -> 18122.45 | M47: 1.8 | N47: 32620.41 | P47: 46937.1455
B48: June | D48: ='6. Historical Wholesale'!D48 -> 25680.6904 | E48: 3.41 | F48: 87571.15427 | H48: ='6. Historical Wholesale'!H48 -> 27093.55 | I48: 0.79 | J48: 21403.9045 | L48: ='6. Historical Wholesale'!L48 -> 27093.55 | M48: 1.8 | N48: 48768.39 | P48: 70172.2945
B49: July | D49: ='6. Historical Wholesale'!D49 -> 22833.10217 | E49: 3.41 | F49: 77860.87839 | H49: ='6. Historical Wholesale'!H49 -> 22833.1 | I49: 0.79 | J49: 18038.149 | L49: ='6. Historical Wholesale'!L49 -> 22833.1 | M49: 1.8 | N49: 41099.58 | P49: 59137.729
B50: August | D50: ='6. Historical Wholesale'!D50 -> 26864.34365 | E50: 3.41 | F50: 91607.41186 | H50: ='6. Historical Wholesale'!H50 -> 27520.34 | I50: 0.79 | J50: 21741.0686 | L50: ='6. Historical Wholesale'!L50 -> 27520.34 | M50: 1.8 | N50: 49536.612 | P50: 71277.6806
B51: September | D51: ='6. Historical Wholesale'!D51 -> 20613.48916 | E51: 3.41 | F51: 70291.99805 | H51: ='6. Historical Wholesale'!H51 -> 21835.48 | I51: 0.79 | J51: 17250.0292 | L51: ='6. Historical Wholesale'!L51 -> 21835.48 | M51: 1.8 | N51: 39303.864 | P51: 56553.8932
B52: October | D52: ='6. Historical Wholesale'!D52 -> 22332.0031 | E52: 3.41 | F52: 76152.13056 | H52: ='6. Historical Wholesale'!H52 -> 22945.6 | I52: 0.79 | J52: 18127.024 | L52: ='6. Historical Wholesale'!L52 -> 22945.6 | M52: 1.8 | N52: 41302.08 | P52: 59429.104
B53: November | D53: ='6. Historical Wholesale'!D53 -> 28753.94737 | E53: 3.41 | F53: 98050.96053 | H53: ='6. Historical Wholesale'!H53 -> 30303.34 | I53: 0.79 | J53: 23939.6386 | L53: ='6. Historical Wholesale'!L53 -> 30303.34 | M53: 1.8 | N53: 54546.012 | P53: 78485.6506
B54: December | D54: ='6. Historical Wholesale'!D54 -> 30754.12384 | E54: 3.41 | F54: 104871.5623 | H54: ='6. Historical Wholesale'!H54 -> 31007.18 | I54: 0.79 | J54: 24495.6722 | L54: ='6. Historical Wholesale'!L54 -> 31007.18 | M54: 1.8 | N54: 55812.924 | P54: 80308.5962
B56: Total | D56: =SUM(D43:D54) -> 322782.4582 | E56: =IF(D56<>0,F56/D56,0) -> 3.41 | F56: =SUM(F43:F54) -> 1100688.182 | H56: =SUM(H43:H54) -> 332994.6838 | I56: =IF(H56<>0,J56/H56,0) -> 0.79 | J56: =SUM(J43:J54) -> 263065.8002 | L56: =SUM(L43:L54) -> 332994.6683 | M56: =IF(L56<>0,N56/L56,0) -> 1.8 | N56: =SUM(N43:N54) -> 599390.4029 | P56: =SUM(P43:P54) -> 862456.2031
B58: ='6. Historical Wholesale'!B58 -> Brookfield | D58: Network | H58: Line Connection | L58: Transformation Connection | P58: Total Line
B60: Month | D60: Units Billed | E60: Rate | F60: Amount | H60: Units Billed | I60: Rate | J60: Amount | L60: Units Billed | M60: Rate | N60: Amount | P60: Amount
B62: January | D62: ='6. Historical Wholesale'!D62 -> 846 | E62: ='5. UTRs and Sub-Transmission'!G50 -> 3 | F62: =D62*E62 -> 2538 | H62: ='6. Historical Wholesale'!H62 -> 0 | I62: ='5. UTRs and Sub-Transmission'!G52 -> 0 | J62: =H62*I62 -> 0 | L62: ='6. Historical Wholesale'!L62 -> 0 | M62: ='5. UTRs and Sub-Transmission'!G54 -> 0 | N62: =L62*M62 -> 0 | P62: =J62+N62 -> 0
B63: February | D63: ='6. Historical Wholesale'!D63 -> 0 | E63: =E62 -> 3 | F63: =D63*E63 -> 0 | H63: ='6. Historical Wholesale'!H63 -> 0 | I63: =I62 -> 0 | J63: =H63*I63 -> 0 | L63: ='6. Historical Wholesale'!L63 -> 0 | M63: =M62 -> 0 | N63: =L63*M63 -> 0 | P63: 0
B64: March | D64: ='6. Historical Wholesale'!D64 -> 576 | E64: =E63 -> 3 | F64: 1728 | H64: ='6. Historical Wholesale'!H64 -> 0 | I64: =I63 -> 0 | J64: 0 | L64: ='6. Historical Wholesale'!L64 -> 0 | M64: =M63 -> 0 | N64: 0 | P64: 0
B65: April | D65: ='6. Historical Wholesale'!D65 -> 792 | E65: 3 | F65: 2376 | H65: ='6. Historical Wholesale'!H65 -> 0 | I65: 0 | J65: 0 | L65: ='6. Historical Wholesale'!L65 -> 0 | M65: =M64 -> 0 | N65: 0 | P65: 0
B66: May | D66: ='6. Historical Wholesale'!D66 -> 816 | E66: 3 | F66: 2448 | H66: ='6. Historical Wholesale'!H66 -> 0 | I66: 0 | J66: 0 | L66: ='6. Historical Wholesale'!L66 -> 0 | M66: 0 | N66: 0 | P66: 0
B67: June | D67: ='6. Historical Wholesale'!D67 -> 6738 | E67: 3 | F67: 20214 | H67: ='6. Historical Wholesale'!H67 -> 0 | I67: 0 | J67: 0 | L67: ='6. Historical Wholesale'!L67 -> 0 | M67: 0 | N67: 0 | P67: 0
B68: July | D68: ='6. Historical Wholesale'!D68 -> 1800 | E68: 3 | F68: 5400 | H68: ='6. Historical Wholesale'!H68 -> 0 | I68: 0 | J68: 0 | L68: ='6. Historical Wholesale'!L68 -> 0 | M68: 0 | N68: 0 | P68: 0
B69: August | D69: ='6. Historical Wholesale'!D69 -> 2928 | E69: 3 | F69: 8784 | H69: ='6. Historical Wholesale'!H69 -> 0 | I69: 0 | J69: 0 | L69: ='6. Historical Wholesale'!L69 -> 0 | M69: 0 | N69: 0 | P69: 0
B70: September | D70: ='6. Historical Wholesale'!D70 -> 3324 | E70: 3 | F70: 9972 | H70: ='6. Historical Wholesale'!H70 -> 0 | I70: 0 | J70: 0 | L70: ='6. Historical Wholesale'!L70 -> 0 | M70: 0 | N70: 0 | P70: 0
B71: October | D71: ='6. Historical Wholesale'!D71 -> 3012 | E71: 3 | F71: 9036 | H71: ='6. Historical Wholesale'!H71 -> 0 | I71: 0 | J71: 0 | L71: ='6. Historical Wholesale'!L71 -> 0 | M71: 0 | N71: 0 | P71: 0
B72: November | D72: ='6. Historical Wholesale'!D72 -> 0 | E72: 3 | F72: 0 | H72: ='6. Historical Wholesale'!H72 -> 0 | I72: 0 | J72: 0 | L72: ='6. Historical Wholesale'!L72 -> 0 | M72: 0 | N72: 0 | P72: 0
B73: December | D73: ='6. Historical Wholesale'!D73 -> 396 | E73: 3 | F73: 1188 | H73: ='6. Historical Wholesale'!H73 -> 0 | I73: 0 | J73: 0 | L73: ='6. Historical Wholesale'!L73 -> 0 | M73: 0 | N73: 0 | P73: 0
B75: Total | D75: =SUM(D62:D73) -> 21228 | E75: =IF(D75<>0,F75/D75,0) -> 3 | F75: =SUM(F62:F73) -> 63684 | H75: =SUM(H62:H73) -> 0 | I75: =IF(H75<>0,J75/H75,0) -> 0 | J75: =SUM(J62:J73) -> 0 | L75: =SUM(L62:L73) -> 0 | M75: =IF(L75<>0,N75/L75,0) -> 0 | N75: =SUM(N62:N73) -> 0 | P75: =SUM(P62:P73) -> 0
B77: ='6. Historical Wholesale'!B77 -> Add Extra Host Here (II) | D77: Network | H77: Line Connection | L77: Transformation Connection | P77: Total Line
B79: Month | D79: Units Billed | E79: Rate | F79: Amount | H79: Units Billed | I79: Rate | J79: Amount | L79: Units Billed | M79: Rate | N79: Amount | P79: Amount
B81: January | D81: ='6. Historical Wholesale'!D81 -> 0 | E81: ='5. UTRs and Sub-Transmission'!G65 -> 0 | F81: =D81*E81 -> 0 | H81: ='6. Historical Wholesale'!H81 -> 0 | I81: ='5. UTRs and Sub-Transmission'!G67 -> 0 | J81: =H81*I81 -> 0 | L81: ='6. Historical Wholesale'!L81 -> 0 | M81: ='5. UTRs and Sub-Transmission'!G69 -> 0 | N81: =L81*M81 -> 0 | P81: =J81+N81 -> 0
B82: February | D82: ='6. Historical Wholesale'!D82 -> 0 | E82: =E81 -> 0 | F82: =D82*E82 -> 0 | H82: ='6. Historical Wholesale'!H82 -> 0 | I82: =I81 -> 0 | J82: =H82*I82 -> 0 | L82: ='6. Historical Wholesale'!L82 -> 0 | M82: =M81 -> 0 | N82: =L82*M82 -> 0 | P82: 0
B83: March | D83: ='6. Historical Wholesale'!D83 -> 0 | E83: =E82 -> 0 | F83: 0 | H83: ='6. Historical Wholesale'!H83 -> 0 | I83: =I82 -> 0 | J83: 0 | L83: ='6. Historical Wholesale'!L83 -> 0 | M83: =M82 -> 0 | N83: 0 | P83: 0
B84: April | D84: ='6. Historical Wholesale'!D84 -> 0 | E84: 0 | F84: 0 | H84: ='6. Historical Wholesale'!H84 -> 0 | I84: 0 | J84: 0 | L84: ='6. Historical Wholesale'!L84 -> 0 | M84: =M83 -> 0 | N84: 0 | P84: 0
B85: May | D85: ='6. Historical Wholesale'!D85 -> 0 | E85: 0 | F85: 0 | H85: ='6. Historical Wholesale'!H85 -> 0 | I85: 0 | J85: 0 | L85: ='6. Historical Wholesale'!L85 -> 0 | M85: 0 | N85: 0 | P85: 0
B86: June | D86: ='6. Historical Wholesale'!D86 -> 0 | E86: 0 | F86: 0 | H86: ='6. Historical Wholesale'!H86 -> 0 | I86: 0 | J86: 0 | L86: ='6. Historical Wholesale'!L86 -> 0 | M86: 0 | N86: 0 | P86: 0
B87: July | D87: ='6. Historical Wholesale'!D87 -> 0 | E87: 0 | F87: 0 | H87: ='6. Historical Wholesale'!H87 -> 0 | I87: 0 | J87: 0 | L87: ='6. Historical Wholesale'!L87 -> 0 | M87: 0 | N87: 0 | P87: 0
B88: August | D88: ='6. Historical Wholesale'!D88 -> 0 | E88: 0 | F88: 0 | H88: ='6. Historical Wholesale'!H88 -> 0 | I88: 0 | J88: 0 | L88: ='6. Historical Wholesale'!L88 -> 0 | M88: 0 | N88: 0 | P88: 0
B89: September | D89: ='6. Historical Wholesale'!D89 -> 0 | E89: 0 | F89: 0 | H89: ='6. Historical Wholesale'!H89 -> 0 | I89: 0 | J89: 0 | L89: ='6. Historical Wholesale'!L89 -> 0 | M89: 0 | N89: 0 | P89: 0
B90: October | D90: ='6. Historical Wholesale'!D90 -> 0 | E90: 0 | F90: 0 | H90: ='6. Historical Wholesale'!H90 -> 0 | I90: 0 | J90: 0 | L90: ='6. Historical Wholesale'!L90 -> 0 | M90: 0 | N90: 0 | P90: 0
B91: November | D91: ='6. Historical Wholesale'!D91 -> 0 | E91: 0 | F91: 0 | H91: ='6. Historical Wholesale'!H91 -> 0 | I91: 0 | J91: 0 | L91: ='6. Historical Wholesale'!L91 -> 0 | M91: 0 | N91: 0 | P91: 0
B92: December | D92: ='6. Historical Wholesale'!D92 -> 0 | E92: 0 | F92: 0 | H92: ='6. Historical Wholesale'!H92 -> 0 | I92: 0 | J92: 0 | L92: ='6. Historical Wholesale'!L92 -> 0 | M92: 0 | N92: 0 | P92: 0
B94: Total | D94: =SUM(D81:D92) -> 0 | E94: =IF(D94<>0,F94/D94,0) -> 0 | F94: =SUM(F81:F92) -> 0 | H94: =SUM(H81:H92) -> 0 | I94: =IF(H94<>0,J94/H94,0) -> 0 | J94: =SUM(J81:J92) -> 0 | L94: =SUM(L81:L92) -> 0 | M94: =IF(L94<>0,N94/L94,0) -> 0 | N94: =SUM(N81:N92) -> 0 | P94: =SUM(P81:P92) -> 0
B96: Total | D96: Network | H96: Line Connection | L96: Transformation Connection | P96: Total Line
B98: Month | D98: Units Billed | E98: Rate | F98: Amount | H98: Units Billed | I98: Rate | J98: Amount | L98: Units Billed | M98: Rate | N98: Amount | P98: Amount
B100: January | D100: =D24+D43+D62+D81 -> 47797.93498 | E100: =IF(D100<>0,F100/D100,0) -> 3.402743201 | F100: =F24+F43+F62+F81 -> 162644.0983 | H100: =H24+H43+H62+H81 -> 46951.95385 | I100: =IF(H100<>0,J100/H100,0) -> 0.79 | J100: =J24+J43+J62+J81 -> 37092.04354 | L100: =L24+L43+L62+L81 -> 46951.93827 | M100: =IF(L100<>0,N100/L100,0) -> 1.8 | N100: =N24+N43+N62+N81 -> 84513.48889 | P100: =J100+N100 -> 121605.5324
B101: February | D101: =D25+D44+D63+D82 -> 31523.42724 | E101: 3.41 | F101: =F25+F44+F63+F82 -> 107494.8869 | H101: =H25+H44+H63+H82 -> 32751 | I101: 0.79 | J101: =J25+J44+J63+J82 -> 25873.29 | L101: =L25+L44+L63+L82 -> 32751 | M101: 1.8 | N101: =N25+N44+N63+N82 -> 58951.8 | P101: 84825.09
B102: March | D102: 30523.57276 | E102: 3.402263029 | F102: 103849.2231 | H102: 30188.19 | I102: 0.79 | J102: 23848.6701 | L102: 30188.19 | M102: 1.8 | N102: 54338.742 | P102: 78187.4121
B103: April | D103: 20433.97833 | E103: 3.394108821 | F103: 69355.1461 | H103: 21442.5 | I103: 0.79 | J103: 16939.575 | L103: 21442.5 | M103: 1.8 | N103: 38596.5 | P103: 55536.075
B104: May | D104: 17701.8452 | E104: 3.391100275 | F104: 60028.73214 | H104: 18122.45 | I104: 0.79 | J104: 14316.7355 | L104: 18122.45 | M104: 1.8 | N104: 32620.41 | P104: 46937.1455
B105: June | D105: 32418.6904 | E105: 3.324784343 | F105: 107785.1543 | H105: 27093.55 | I105: 0.79 | J105: 21403.9045 | L105: 27093.55 | M105: 1.8 | N105: 48768.39 | P105: 70172.2945
B106: July | D106: 24633.10217 | E106: 3.380040314 | F106: 83260.87839 | H106: 22833.1 | I106: 0.79 | J106: 18038.149 | L106: 22833.1 | M106: 1.8 | N106: 41099.58 | P106: 59137.729
B107: August | D107: 29792.34365 | E107: 3.369705083 | F107: 100391.4119 | H107: 27520.34 | I107: 0.79 | J107: 21741.0686 | L107: 27520.34 | M107: 1.8 | N107: 49536.612 | P107: 71277.6806
B108: September | D108: 23937.48916 | E108: 3.353066711 | F108: 80263.99805 | H108: 21835.48 | I108: 0.79 | J108: 17250.0292 | L108: 21835.48 | M108: 1.8 | N108: 39303.864 | P108: 56553.8932
B109: October | D109: 25344.0031 | E109: 3.36127368 | F109: 85188.13056 | H109: 22945.6 | I109: 0.79 | J109: 18127.024 | L109: 22945.6 | M109: 1.8 | N109: 41302.08 | P109: 59429.104
B110: November | D110: 28753.94737 | E110: 3.41 | F110: 98050.96053 | H110: 30303.34 | I110: 0.79 | J110: 23939.6386 | L110: 30303.34 | M110: 1.8 | N110: 54546.012 | P110: 78485.6506
B111: December | D111: 31150.12384 | E111: 3.404787822 | F111: 106059.5623 | H111: 31007.18 | I111: 0.79 | J111: 24495.6722 | L111: 31007.18 | M111: 1.8 | N111: 55812.924 | P111: 80308.5962
B113: Total | D113: =SUM(D100:D111) -> 344010.4582 | E113: =IF(D113<>0,F113/D113,0) -> 3.384699955 | F113: =SUM(F100:F111) -> 1164372.182 | H113: =SUM(H100:H111) -> 332994.6838 | I113: =IF(H113<>0,J113/H113,0) -> 0.79 | J113: =SUM(J100:J111) -> 263065.8002 | L113: =SUM(L100:L111) -> 332994.6683 | M113: =IF(L113<>0,N113/L113,0) -> 1.8 | N113: =SUM(N100:N111) -> 599390.4029 | P113: =SUM(P100:P111) -> 862456.2031
N115: Low Voltage Switchgear Credit (if applicable) | P115: ='5. UTRs and Sub-Transmission'!G95 -> 0
N117: Total including deduction for Low Voltage Switchgear Credit | P117: =P113+P115 -> 862456.2031

Sheet 8. Forecast Wholesale
B13: The purpose of this sheet is to calculate the expected billing when forecasted 2016 Uniform Transmission Rates are applied against historical 2014 transmission units.
B20: IESO | D20: Network | H20: Line Connection | L20: Transformation Connection | P20: Total Line
B22: Month | D22: Units Billed | E22: Rate | F22: Amount | H22: Units Billed | I22: Rate | J22: Amount | L22: Units Billed | M22: Rate | N22: Amount | P22: Amount
B24: January | D24: ='6. Historical Wholesale'!D24 -> 0 | E24: ='5. UTRs and Sub-Transmission'!I22 -> 3.78 | F24: =D24*E24 -> 0 | H24: ='6. Historical Wholesale'!H24 -> 0 | I24: ='5. UTRs and Sub-Transmission'!I24 -> 0.86 | J24: =H24*I24 -> 0 | L24: ='6. Historical Wholesale'!L24 -> 0 | M24: ='5. UTRs and Sub-Transmission'!I26 -> 2 | N24: =L24*M24 -> 0 | P24: =J24+N24 -> 0
B25: February | D25: ='6. Historical Wholesale'!D25 -> 0 | E25: =E24 -> 3.78 | F25: 0 | H25: ='6. Historical Wholesale'!H25 -> 0 | I25: =I24 -> 0.86 | J25: 0 | L25: ='6. Historical Wholesale'!L25 -> 0 | M25: =M24 -> 2 | N25: 0 | P25: 0
B26: March | D26: ='6. Historical Wholesale'!D26 -> 0 | E26: 3.78 | F26: 0 | H26: ='6. Historical Wholesale'!H26 -> 0 | I26: 0.86 | J26: 0 | L26: ='6. Historical Wholesale'!L26 -> 0 | M26: 2 | N26: 0 | P26: 0
B27: April | D27: ='6. Historical Wholesale'!D27 -> 0 | E27: 3.78 | F27: 0 | H27: ='6. Historical Wholesale'!H27 -> 0 | I27: 0.86 | J27: 0 | L27: ='6. Historical Wholesale'!L27 -> 0 | M27: 2 | N27: 0 | P27: 0
B28: May | D28: ='6. Historical Wholesale'!D28 -> 0 | E28: 3.78 | F28: 0 | H28: ='6. Historical Wholesale'!H28 -> 0 | I28: 0.86 | J28: 0 | L28: ='6. Historical Wholesale'!L28 -> 0 | M28: 2 | N28: 0 | P28: 0
B29: June | D29: ='6. Historical Wholesale'!D29 -> 0 | E29: 3.78 | F29: 0 | H29: ='6. Historical Wholesale'!H29 -> 0 | I29: 0.86 | J29: 0 | L29: ='6. Historical Wholesale'!L29 -> 0 | M29: 2 | N29: 0 | P29: 0
B30: July | D30: ='6. Historical Wholesale'!D30 -> 0 | E30: 3.78 | F30: 0 | H30: ='6. Historical Wholesale'!H30 -> 0 | I30: 0.86 | J30: 0 | L30: ='6. Historical Wholesale'!L30 -> 0 | M30: 2 | N30: 0 | P30: 0
B31: August | D31: ='6. Historical Wholesale'!D31 -> 0 | E31: 3.78 | F31: 0 | H31: ='6. Historical Wholesale'!H31 -> 0 | I31: 0.86 | J31: 0 | L31: ='6. Historical Wholesale'!L31 -> 0 | M31: 2 | N31: 0 | P31: 0
B32: September | D32: ='6. Historical Wholesale'!D32 -> 0 | E32: 3.78 | F32: 0 | H32: ='6. Historical Wholesale'!H32 -> 0 | I32: 0.86 | J32: 0 | L32: ='6. Historical Wholesale'!L32 -> 0 | M32: 2 | N32: 0 | P32: 0
B33: October | D33: ='6. Historical Wholesale'!D33 -> 0 | E33: 3.78 | F33: 0 | H33: ='6. Historical Wholesale'!H33 -> 0 | I33: 0.86 | J33: 0 | L33: ='6. Historical Wholesale'!L33 -> 0 | M33: 2 | N33: 0 | P33: 0
B34: November | D34: ='6. Historical Wholesale'!D34 -> 0 | E34: 3.78 | F34: 0 | H34: ='6. Historical Wholesale'!H34 -> 0 | I34: 0.86 | J34: 0 | L34: ='6. Historical Wholesale'!L34 -> 0 | M34: 2 | N34: 0 | P34: 0
B35: December | D35: ='6. Historical Wholesale'!D35 -> 0 | E35: 3.78 | F35: 0 | H35: ='6. Historical Wholesale'!H35 -> 0 | I35: 0.86 | J35: 0 | L35: ='6. Historical Wholesale'!L35 -> 0 | M35: 2 | N35: 0 | P35: 0
B37: Total | D37: =SUM(D24:D35) -> 0 | E37: =IF(D37<>0,F37/D37,0) -> 0 | F37: =SUM(F24:F35) -> 0 | H37: =SUM(H24:H35) -> 0 | I37: =IF(H37<>0,J37/H37,0) -> 0 | J37: =SUM(J24:J35) -> 0 | L37: =SUM(L24:L35) -> 0 | M37: =IF(L37<>0,N37/L37,0) -> 0 | N37: =SUM(N24:N35) -> 0 | P37: =SUM(P24:P35) -> 0
B39: Hydro One | D39: Network | H39: Line Connection | L39: Transformation Connection | P39: Total Line
B41: Month | D41: Units Billed | E41: Rate | F41: Amount | H41: Units Billed | I41: Rate | J41: Amount | L41: Units Billed | M41: Rate | N41: Amount | P41: Amount
B43: January | D43: ='6. Historical Wholesale'!D43 -> 46951.93498 | E43: ='5. UTRs and Sub-Transmission'!I35+'5. UTRs and Sub-Transmission'!I79 -> 3.3396 | F43: =D43*E43 -> 156800.6821 | H43: ='6. Historical Wholesale'!H43 -> 46951.95385 | I43: ='5. UTRs and Sub-Transmission'!I37+'5. UTRs and Sub-Transmission'!I81 -> 0.7791 | J43: =H43*I43 -> 36580.26724 | L43: ='6. Historical Wholesale'!L43 -> 46951.93827 | M43: ='5. UTRs and Sub-Transmission'!I39 -> 1.7713 | N43: =L43*M43 -> 83165.96826 | P43: =J43+N43 -> 119746.2355
B44: February | D44: ='6. Historical Wholesale'!D44 -> 31523.42724 | E44: =E43 -> 3.3396 | F44: 105275.6376 | H44: ='6. Historical Wholesale'!H44 -> 32751 | I44: =I43 -> 0.7791 | J44: 25516.3041 | L44: ='6. Historical Wholesale'!L44 -> 32751 | M44: =M43 -> 1.7713 | N44: 58011.8463 | P44: 83528.1504
B45: March | D45: ='6. Historical Wholesale'!D45 -> 29947.57276 | E45: 3.3396 | F45: 100012.914 | H45: ='6. Historical Wholesale'!H45 -> 30188.19 | I45: 0.7791 | J45: 23519.61883 | L45: ='6. Historical Wholesale'!L45 -> 30188.19 | M45: 1.7713 | N45: 53472.34095 | P45: 76991.95978
B46: April | D46: ='6. Historical Wholesale'!D46 -> 19641.97833 | E46: 3.3396 | F46: 65596.35082 | H46: ='6. Historical Wholesale'!H46 -> 21442.5 | I46: 0.7791 | J46: 16705.85175 | L46: ='6. Historical Wholesale'!L46 -> 21442.5 | M46: 1.7713 | N46: 37981.10025 | P46: 54686.952
B47: May | D47: ='6. Historical Wholesale'!D47 -> 16885.8452 | E47: 3.3396 | F47: 56391.96863 | H47: ='6. Historical Wholesale'!H47 -> 18122.45 | I47: 0.7791 | J47: 14119.2008 | L47: ='6. Historical Wholesale'!L47 -> 18122.45 | M47: 1.7713 | N47: 32100.29569 | P47: 46219.49648
B48: June | D48: ='6. Historical Wholesale'!D48 -> 25680.6904 | E48: 3.3396 | F48: 85763.23367 | H48: ='6. Historical Wholesale'!H48 -> 27093.55 | I48: 0.7791 | J48: 21108.5848 | L48: ='6. Historical Wholesale'!L48 -> 27093.55 | M48: 1.7713 | N48: 47990.80512 | P48: 69099.38992
B49: July | D49: ='6. Historical Wholesale'!D49 -> 22833.10217 | E49: 3.3396 | F49: 76253.428 | H49: ='6. Historical Wholesale'!H49 -> 22833.1 | I49: 0.7791 | J49: 17789.26821 | L49: ='6. Historical Wholesale'!L49 -> 22833.1 | M49: 1.7713 | N49: 40444.27003 | P49: 58233.53824
B50: August | D50: ='6. Historical Wholesale'!D50 -> 26864.34365 | E50: 3.3396 | F50: 89716.16206 | H50: ='6. Historical Wholesale'!H50 -> 27520.34 | I50: 0.7791 | J50: 21441.09689 | L50: ='6. Historical Wholesale'!L50 -> 27520.34 | M50: 1.7713 | N50: 48746.77824 | P50: 70187.87514
B51: September | D51: ='6. Historical Wholesale'!D51 -> 20613.48916 | E51: 3.3396 | F51: 68840.80841 | H51: ='6. Historical Wholesale'!H51 -> 21835.48 | I51: 0.7791 | J51: 17012.02247 | L51: ='6. Historical Wholesale'!L51 -> 21835.48 | M51: 1.7713 | N51: 38677.18572 | P51: 55689.20819
B52: October | D52: ='6. Historical Wholesale'!D52 -> 22332.0031 | E52: 3.3396 | F52: 74579.95754 | H52: ='6. Historical Wholesale'!H52 -> 22945.6 | I52: 0.7791 | J52: 17876.91696 | L52: ='6. Historical Wholesale'!L52 -> 22945.6 | M52: 1.7713 | N52: 40643.54128 | P52: 58520.45824
B53: November | D53: ='6. Historical Wholesale'!D53 -> 28753.94737 | E53: 3.3396 | F53: 96026.68263 | H53: ='6. Historical Wholesale'!H53 -> 30303.34 | I53: 0.7791 | J53: 23609.33219 | L53: ='6. Historical Wholesale'!L53 -> 30303.34 | M53: 1.7713 | N53: 53676.30614 | P53: 77285.63834
B54: December | D54: ='6. Historical Wholesale'!D54 -> 30754.12384 | E54: 3.3396 | F54: 102706.472 | H54: ='6. Historical Wholesale'!H54 -> 31007.18 | I54: 0.7791 | J54: 24157.69394 | L54: ='6. Historical Wholesale'!L54 -> 31007.18 | M54: 1.7713 | N54: 54923.01793 | P54: 79080.71187
B56: Total | D56: =SUM(D43:D54) -> 322782.4582 | E56: =IF(D56<>0,F56/D56,0) -> 3.3396 | F56: =SUM(F43:F54) -> 1077964.297 | H56: =SUM(H43:H54) -> 332994.6838 | I56: =IF(H56<>0,J56/H56,0) -> 0.7791 | J56: =SUM(J43:J54) -> 259436.1582 | L56: =SUM(L43:L54) -> 332994.6683 | M56: =IF(L56<>0,N56/L56,0) -> 1.7713 | N56: =SUM(N43:N54) -> 589833.4559 | P56: =SUM(P43:P54) -> 849269.6141
B58: ='6. Historical Wholesale'!B58 -> Brookfield | D58: Network | H58: Line Connection | L58: Transformation Connection | P58: Total Line
B60: Month | D60: Units Billed | E60: Rate | F60: Amount | H60: Units Billed | I60: Rate | J60: Amount | L60: Units Billed | M60: Rate | N60: Amount | P60: Amount
B62: January | D62: ='6. Historical Wholesale'!D62 -> 846 | E62: ='5. UTRs and Sub-Transmission'!I50 -> 2.945 | F62: =D62*E62 -> 2491.47 | H62: ='6. Historical Wholesale'!H62 -> 0 | I62: ='5. UTRs and Sub-Transmission'!I52 -> 0 | J62: =H62*I62 -> 0 | L62: ='6. Historical Wholesale'!L62 -> 0 | M62: ='5. UTRs and Sub-Transmission'!I54 -> 0 | N62: =L62*M62 -> 0 | P62: =J62+N62 -> 0
B63: February | D63: ='6. Historical Wholesale'!D63 -> 0 | E63: =E62 -> 2.945 | F63: 0 | H63: ='6. Historical Wholesale'!H63 -> 0 | I63: =I62 -> 0 | J63: 0 | L63: ='6. Historical Wholesale'!L63 -> 0 | M63: =M62 -> 0 | N63: 0 | P63: 0
B64: March | D64: ='6. Historical Wholesale'!D64 -> 576 | E64: 2.945 | F64: 1696.32 | H64: ='6. Historical Wholesale'!H64 -> 0 | I64: 0 | J64: 0 | L64: ='6. Historical Wholesale'!L64 -> 0 | M64: 0 | N64: 0 | P64: 0
B65: April | D65: ='6. Historical Wholesale'!D65 -> 792 | E65: 2.945 | F65: 2332.44 | H65: ='6. Historical Wholesale'!H65 -> 0 | I65: 0 | J65: 0 | L65: ='6. Historical Wholesale'!L65 -> 0 | M65: 0 | N65: 0 | P65: 0
B66: May | D66: ='6. Historical Wholesale'!D66 -> 816 | E66: 2.945 | F66: 2403.12 | H66: ='6. Historical Wholesale'!H66 -> 0 | I66: 0 | J66: 0 | L66: ='6. Historical Wholesale'!L66 -> 0 | M66: 0 | N66: 0 | P66: 0
B67: June | D67: ='6. Historical Wholesale'!D67 -> 6738 | E67: 2.945 | F67: 19843.41 | H67: ='6. Historical Wholesale'!H67 -> 0 | I67: 0 | J67: 0 | L67: ='6. Historical Wholesale'!L67 -> 0 | M67: 0 | N67: 0 | P67: 0
B68: July | D68: ='6. Historical Wholesale'!D68 -> 1800 | E68: 2.945 | F68: 5301 | H68: ='6. Historical Wholesale'!H68 -> 0 | I68: 0 | J68: 0 | L68: ='6. Historical Wholesale'!L68 -> 0 | M68: 0 | N68: 0 | P68: 0
B69: August | D69: ='6. Historical Wholesale'!D69 -> 2928 | E69: 2.945 | F69: 8622.96 | H69: ='6. Historical Wholesale'!H69 -> 0 | I69: 0 | J69: 0 | L69: ='6. Historical Wholesale'!L69 -> 0 | M69: 0 | N69: 0 | P69: 0
B70: September | D70: ='6. Historical Wholesale'!D70 -> 3324 | E70: 2.945 | F70: 9789.18 | H70: ='6. Historical Wholesale'!H70 -> 0 | I70: 0 | J70: 0 | L70: ='6. Historical Wholesale'!L70 -> 0 | M70: 0 | N70: 0 | P70: 0
B71: October | D71: ='6. Historical Wholesale'!D71 -> 3012 | E71: 2.945 | F71: 8870.34 | H71: ='6. Historical Wholesale'!H71 -> 0 | I71: 0 | J71: 0 | L71: ='6. Historical Wholesale'!L71 -> 0 | M71: 0 | N71: 0 | P71: 0
B72: November | D72: ='6. Historical Wholesale'!D72 -> 0 | E72: 2.945 | F72: 0 | H72: ='6. Historical Wholesale'!H72 -> 0 | I72: 0 | J72: 0 | L72: ='6. Historical Wholesale'!L72 -> 0 | M72: 0 | N72: 0 | P72: 0
B73: December | D73: ='6. Historical Wholesale'!D73 -> 396 | E73: 2.945 | F73: 1166.22 | H73: ='6. Historical Wholesale'!H73 -> 0 | I73: 0 | J73: 0 | L73: ='6. Historical Wholesale'!L73 -> 0 | M73: 0 | N73: 0 | P73: 0
B75: Total | D75: =SUM(D62:D73) -> 21228 | E75: =IF(D75<>0,F75/D75,0) -> 2.945 | F75: =SUM(F62:F73) -> 62516.46 | H75: =SUM(H62:H73) -> 0 | I75: =IF(H75<>0,J75/H75,0) -> 0 | J75: =SUM(J62:J73) -> 0 | L75: =SUM(L62:L73) -> 0 | M75: =IF(L75<>0,N75/L75,0) -> 0 | N75: =SUM(N62:N73) -> 0 | P75: =SUM(P62:P73) -> 0
B77: ='6. Historical Wholesale'!B77 -> Add Extra Host Here (II) | D77: Network | H77: Line Connection | L77: Transformation Connection | P77: Total Line
B79: Month | D79: Units Billed | E79: Rate | F79: Amount | H79: Units Billed | I79: Rate | J79: Amount | L79: Units Billed | M79: Rate | N79: Amount | P79: Amount
B81: January | D81: ='6. Historical Wholesale'!D81 -> 0 | E81: ='5. UTRs and Sub-Transmission'!I65 -> 0 | F81: =D81*E81 -> 0 | H81: ='6. Historical Wholesale'!H81 -> 0 | I81: ='5. UTRs and Sub-Transmission'!I67 -> 0 | J81: =H81*I81 -> 0 | L81: ='6. Historical Wholesale'!L81 -> 0 | M81: ='5. UTRs and Sub-Transmission'!I69 -> 0 | N81: =L81*M81 -> 0 | P81: =J81+N81 -> 0
B82: February | D82: ='6. Historical Wholesale'!D82 -> 0 | E82: =E81 -> 0 | F82: 0 | H82: ='6. Historical Wholesale'!H82 -> 0 | I82: =I81 -> 0 | J82: 0 | L82: ='6. Historical Wholesale'!L82 -> 0 | M82: =M81 -> 0 | N82: 0 | P82: 0
B83: March | D83: ='6. Historical Wholesale'!D83 -> 0 | E83: 0 | F83: 0 | H83: ='6. Historical Wholesale'!H83 -> 0 | I83: 0 | J83: 0 | L83: ='6. Historical Wholesale'!L83 -> 0 | M83: 0 | N83: 0 | P83: 0
B84: April | D84: ='6. Historical Wholesale'!D84 -> 0 | E84: 0 | F84: 0 | H84: ='6. Historical Wholesale'!H84 -> 0 | I84: 0 | J84: 0 | L84: ='6. Historical Wholesale'!L84 -> 0 | M84: 0 | N84: 0 | P84: 0
B85: May | D85: ='6. Historical Wholesale'!D85 -> 0 | E85: 0 | F85: 0 | H85: ='6. Historical Wholesale'!H85 -> 0 | I85: 0 | J85: 0 | L85: ='6. Historical Wholesale'!L85 -> 0 | M85: 0 | N85: 0 | P85: 0
B86: June | D86: ='6. Historical Wholesale'!D86 -> 0 | E86: 0 | F86: 0 | H86: ='6. Historical Wholesale'!H86 -> 0 | I86: 0 | J86: 0 | L86: ='6. Historical Wholesale'!L86 -> 0 | M86: 0 | N86: 0 | P86: 0
B87: July | D87: ='6. Historical Wholesale'!D87 -> 0 | E87: 0 | F87: 0 | H87: ='6. Historical Wholesale'!H87 -> 0 | I87: 0 | J87: 0 | L87: ='6. Historical Wholesale'!L87 -> 0 | M87: 0 | N87: 0 | P87: 0
B88: August | D88: ='6. Historical Wholesale'!D88 -> 0 | E88: 0 | F88: 0 | H88: ='6. Historical Wholesale'!H88 -> 0 | I88: 0 | J88: 0 | L88: ='6. Historical Wholesale'!L88 -> 0 | M88: 0 | N88: 0 | P88: 0
B89: September | D89: ='6. Historical Wholesale'!D89 -> 0 | E89: 0 | F89: 0 | H89: ='6. Historical Wholesale'!H89 -> 0 | I89: 0 | J89: 0 | L89: ='6. Historical Wholesale'!L89 -> 0 | M89: 0 | N89: 0 | P89: 0
B90: October | D90: ='6. Historical Wholesale'!D90 -> 0 | E90: 0 | F90: 0 | H90: ='6. Historical Wholesale'!H90 -> 0 | I90: 0 | J90: 0 | L90: ='6. Historical Wholesale'!L90 -> 0 | M90: 0 | N90: 0 | P90: 0
B91: November | D91: ='6. Historical Wholesale'!D91 -> 0 | E91: 0 | F91: 0 | H91: ='6. Historical Wholesale'!H91 -> 0 | I91: 0 | J91: 0 | L91: ='6. Historical Wholesale'!L91 -> 0 | M91: 0 | N91: 0 | P91: 0
B92: December | D92: ='6. Historical Wholesale'!D92 -> 0 | E92: 0 | F92: 0 | H92: ='6. Historical Wholesale'!H92 -> 0 | I92: 0 | J92: 0 | L92: ='6. Historical Wholesale'!L92 -> 0 | M92: 0 | N92: 0 | P92: 0
B94: Total | D94: =SUM(D81:D92) -> 0 | E94: =IF(D94<>0,F94/D94,0) -> 0 | F94: =SUM(F81:F92) -> 0 | H94: =SUM(H81:H92) -> 0 | I94: =IF(H94<>0,J94/H94,0) -> 0 | J94: =SUM(J81:J92) -> 0 | L94: =SUM(L81:L92) -> 0 | M94: =IF(L94<>0,N94/L94,0) -> 0 | N94: =SUM(N81:N92) -> 0 | P94: =SUM(P81:P92) -> 0
B96: Total | D96: Network | H96: Line Connection | L96: Transformation Connection | P96: Total Line
B98: Month | D98: Units Billed | E98: Rate | F98: Amount | H98: Units Billed | I98: Rate | J98: Amount | L98: Units Billed | M98: Rate | N98: Amount | P98: Amount
B100: January | D100: =D24+D43+D62+D81 -> 47797.93498 | E100: =IF(D100<>0,F100/D100,0) -> 3.332615774 | F100: =F24+F43+F62+F81 -> 159292.1521 | H100: =H24+H43+H62+H81 -> 46951.95385 | I100: =IF(H100<>0,J100/H100,0) -> 0.7791 | J100: =J24+J43+J62+J81 -> 36580.26724 | L100: =L24+L43+L62+L81 -> 46951.93827 | M100: =IF(L100<>0,N100/L100,0) -> 1.7713 | N100: =N24+N43+N62+N81 -> 83165.96826 | P100: =J100+N100 -> 119746.2355
B101: February | D101: =D25+D44+D63+D82 -> 31523.42724 | E101: 3.3396 | F101: 105275.6376 | H101: =H25+H44+H63+H82 -> 32751 | I101: 0.7791 | J101: =J25+J44+J63+J82 -> 25516.3041 | L101: =L25+L44+L63+L82 -> 32751 | M101: 1.7713 | N101: =N25+N44+N63+N82 -> 58011.8463 | P101: 83528.1504
B102: March | D102: 30523.57276 | E102: 3.332153637 | F102: 101709.234 | H102: =H26+H45+H64+H83 -> 30188.19 | I102: 0.7791 | J102: =J26+J45+J64+J83 -> 23519.61883 | L102: =L26+L45+L64+L83 -> 30188.19 | M102: 1.7713 | N102: =N26+N45+N64+N83 -> 53472.34095 | P102: 76991.95978
B103: April | D103: 20433.97833 | E103: 3.32430571 | F103: 67928.79082 | H103: =H27+H46+H65+H84 -> 21442.5 | I103: 0.7791 | J103: =J27+J46+J65+J84 -> 16705.85175 | L103: =L27+L46+L65+L84 -> 21442.5 | M103: 1.7713 | N103: =N27+N46+N65+N84 -> 37981.10025 | P103: 54686.952
B104: May | D104: 17701.8452 | E104: 3.321410167 | F104: 58795.08863 | H104: =H28+H47+H66+H85 -> 18122.45 | I104: 0.7791 | J104: =J28+J47+J66+J85 -> 14119.2008 | L104: =L28+L47+L66+L85 -> 18122.45 | M104: 1.7713 | N104: =N28+N47+N66+N85 -> 32100.29569 | P104: 46219.49648
B105: June | D105: 32418.6904 | E105: 3.257585126 | F105: 105606.6437 | H105: =H29+H48+H67+H86 -> 27093.55 | I105: 0.7791 | J105: =J29+J48+J67+J86 -> 21108.5848 | L105: =L29+L48+L67+L86 -> 27093.55 | M105: 1.7713 | N105: =N29+N48+N67+N86 -> 47990.80512 | P105: 69099.38992
B106: July | D106: 24633.10217 | E106: 3.310765629 | F106: 81554.428 | H106: =H30+H49+H68+H87 -> 22833.1 | I106: 0.7791 | J106: =J30+J49+J68+J87 -> 17789.26821 | L106: =L30+L49+L68+L87 -> 22833.1 | M106: 1.7713 | N106: =N30+N49+N68+N87 -> 40444.27003 | P106: 58233.53824
B107: August | D107: 29792.34365 | E107: 3.3008186 | F107: 98339.12206 | H107: =H31+H50+H69+H88 -> 27520.34 | I107: 0.7791 | J107: =J31+J50+J69+J88 -> 21441.09689 | L107: =L31+L50+L69+L88 -> 27520.34 | M107: 1.7713 | N107: =N31+N50+N69+N88 -> 48746.77824 | P107: 70187.87514
B108: September | D108: 23937.48916 | E108: 3.28480518 | F108: 78629.98841 | H108: =H32+H51+H70+H89 -> 21835.48 | I108: 0.7791 | J108: =J32+J51+J70+J89 -> 17012.02247 | L108: =L32+L51+L70+L89 -> 21835.48 | M108: 1.7713 | N108: =N32+N51+N70+N89 -> 38677.18572 | P108: 55689.20819
B109: October | D109: 25344.0031 | E109: 3.292703888 | F109: 83450.29754 | H109: =H33+H52+H71+H90 -> 22945.6 | I109: 0.7791 | J109: =J33+J52+J71+J90 -> 17876.91696 | L109: =L33+L52+L71+L90 -> 22945.6 | M109: 1.7713 | N109: =N33+N52+N71+N90 -> 40643.54128 | P109: 58520.45824
B110: November | D110: 28753.94737 | E110: 3.3396 | F110: 96026.68263 | H110: =H34+H53+H72+H91 -> 30303.34 | I110: 0.7791 | J110: =J34+J53+J72+J91 -> 23609.33219 | L110: =L34+L53+L72+L91 -> 30303.34 | M110: 1.7713 | N110: =N34+N53+N72+N91 -> 53676.30614 | P110: 77285.63834
B111: December | D111: 31150.12384 | E111: 3.334583596 | F111: 103872.692 | H111: =H35+H54+H73+H92 -> 31007.18 | I111: 0.7791 | J111: =J35+J54+J73+J92 -> 24157.69394 | L111: =L35+L54+L73+L92 -> 31007.18 | M111: 1.7713 | N111: =N35+N54+N73+N92 -> 54923.01793 | P111: 79080.71187
B113: Total | D113: =SUM(D100:D111) -> 344010.4582 | E113: =IF(D113<>0,F113/D113,0) -> 3.31525025 | F113: =SUM(F100:F111) -> 1140480.757 | H113: =SUM(H100:H111) -> 332994.6838 | I113: =IF(H113<>0,J113/H113,0) -> 0.7791 | J113: =SUM(J100:J111) -> 259436.1582 | L113: =SUM(L100:L111) -> 332994.6683 | M113: =IF(L113<>0,N113/L113,0) -> 1.7713 | N113: =SUM(N100:N111) -> 589833.4559 | P113: =SUM(P100:P111) -> 849269.6141
N115: Low Voltage Switchgear Credit (if applicable) | P115: ='5. UTRs and Sub-Transmission'!I95 -> 0
N117: Total including deduction for Low Voltage Switchgear Credit | P117: =P113+P115 -> 849269.6141

Sheet 9. RTSR Rates to Forecast
A13: The purpose of this sheet is to re-align the current RTS Network Rates to recover current wholesale network costs.
A15: Rate Class | B15: Rate Description | C15: Unit | D15: Current RTSR-Network | E15: Loss Adjusted Billed kWh | F15: Billed kW | G15: Billed Amount | H15: Billed Amount % | I15: Current Wholesale Billing | J15: Adjusted RTSR Network
A17: Residential | B17: RTSR - Network | C17: kWh | D17: 0.0063 | E17: 82583874.16 | G17: =ROUND(D17*E17, 2) -> 520278.41 | H17: =G17/1216078.33 -> 0.4278329752 | I17: =H17*total_current_wholesale_network -> 498156.8151 | J17: =IF(ISERROR(I17/E17), 0, I17/E17) -> 0.006032131819
A18: General Service Less Than 50 kW | B18: RTSR - Network | C18: kWh | D18: 0.0058 | E18: 32884065.44 | G18: =ROUND(D18*E18, 2) -> 190727.58 | H18: 0.1568382359 | I18: 182618.079 | J18: =IF(ISERROR(I18/E18), 0, I18/E18) -> 0.005553391182
A19: General Service 50 to 4,999 kW | B19: RTSR - Network | C19: kW | D19: 2.3683 | F19: 206399 | G19: =ROUND(D19*F19, 2) -> 488814.75 | H19: 0.4019599214 | I19: 468030.951 | J19: =IF(ISERROR(I19/F19), 0, I19/F19) -> 2.267602803
A20: Sentinel Lighting | B20: RTSR - Network | C20: kW | D20: 1.7951 | F20: 700 | G20: =ROUND(D20*F20, 2) -> 1256.57 | H20: 0.001033296926 | I20: 1203.142197 | J20: =IF(ISERROR(I20/F20), 0, I20/F20) -> 1.718774567
A21: Street Lighting | B21: RTSR - Network | C21: kW | D21: 1.786 | F21: 6866 | G21: =ROUND(D21*F21, 2) -> 12262.68 | H21: 0.01008379123 | I21: 11741.286 | J21: =IF(ISERROR(I21/F21), 0, I21/F21) -> 1.710062045
A22: Unmetered Scattered Load | B22: RTSR - Network | C22: kWh | D22: 0.0058 | E22: 472128.0937 | G22: =ROUND(D22*E22, 2) -> 2738.34 | H22: 0.002251779291 | I22: 2621.909168 | J22: =IF(ISERROR(I22/E22), 0, I22/E22) -> 0.005553385199
A24: The purpose of this table is to re-align the current RTS Connection Rates to recover current wholesale connection costs.
A25: Rate Class | B25: Rate Description | C25: Unit | D25: Current RTSR-Connection | E25: Loss Adjusted Billed kWh | F25: Billed kW | G25: Billed Amount | H25: Billed Amount % | I25: Current Wholesale Billing | J25: Adjusted RTSR-Connection
A27: Residential | B27: RTSR - Connection | C27: kWh | D27: 0.0045 | E27: 82583874.16 | G27: =ROUND(D27*E27, 2) -> 371627.43 | H27: =G27/843797.35 -> 0.4404226086 | I27: =H27*Total_Current_Wholesale_Lineplus -> 379845.2108 | J27: =IF(ISERROR(I27/E27), 0, I27/E27) -> 0.004599508253
A28: General Service Less Than 50 kW | B28: RTSR - Connection | C28: kWh | D28: 0.004 | E28: 32884065.44 | G28: =ROUND(D28*E28, 2) -> 131536.26 | H28: 0.1558860786 | I28: 134444.9154 | J28: =IF(ISERROR(I28/E28), 0, I28/E28) -> 0.004088451767
A29: General Service 50 to 4,999 kW | B29: RTSR - Connection | C29: kW | D29: 1.5959 | F29: 206399 | G29: =ROUND(D29*F29, 2) -> 329392.16 | H29: 0.3903688012 | I29: 336675.9941 | J29: =IF(ISERROR(I29/F29), 0, I29/F29) -> 1.631190045
A30: Sentinel Lighting | B30: RTSR - Connection | C30: kW | D30: 1.2596 | F30: 700 | G30: =ROUND(D30*F30, 2) -> 881.72 | H30: 0.001044942841 | I30: 901.217435 | J30: =IF(ISERROR(I30/F30), 0, I30/F30) -> 1.287453479
A31: Street Lighting | B31: RTSR - Connection | C31: kW | D31: 1.2338 | F31: 6866 | G31: =ROUND(D31*F31, 2) -> 8471.27 | H31: 0.0100394603 | I31: 8658.594815 | J31: =IF(ISERROR(I31/F31), 0, I31/F31) -> 1.261082845
A32: Unmetered Scattered Load | B32: RTSR - Connection | C32: kWh | D32: 0.004 | E32: 472128.0937 | G32: =ROUND(D32*E32, 2) -> 1888.51 | H32: 0.002238108475 | I32: 1930.270537 | J32: =IF(ISERROR(I32/E32), 0, I32/E32) -> 0.00408844668
A34: The purpose of this table is to update the re-aligned RTS Network Rates to recover future wholesale network costs.
A35: Rate Class | B35: Rate Description | C35: Unit | D35: Adjusted RTSR-Network | E35: Loss Adjusted Billed kWh | F35: Billed kW | G35: Billed Amount | H35: Billed Amount % | I35: Current Wholesale Billing | J35: Proposed RTSR-Network
A37: Residential | B37: RTSR - Network | C37: kWh | D37: 0.006032131819 | E37: 82583874.16 | G37: =IF(ISERROR(D37*E37), 0, ROUND(D37*E37, 2)) -> 498156.82 | H37: =G37/1164372.19 -> 0.4278329767 | I37: =H37*forecast_wholesale_network -> 487935.2773 | J37: =IF(ISERROR(I37/E37), 0, I37/E37) -> 0.005908360225
A38: General Service Less Than 50 kW | B38: RTSR - Network | C38: kWh | D38: 0.005553391182 | E38: 32884065.44 | G38: =IF(ISERROR(D38*E38), 0, ROUND(D38*E38, 2)) -> 182618.08 | H38: 0.1568382357 | I38: 178870.9899 | J38: =IF(ISERROR(I38/E38), 0, I38/E38) -> 0.005439442705
A39: General Service 50 to 4,999 kW | B39: RTSR - Network | C39: kW | D39: 2.267602803 | F39: 206399 | G39: =ROUND(D39*F39, 2) -> 468030.95 | H39: 0.401959918 | I39: 458427.5517 | J39: =IF(ISERROR(I39/F39), 0, I39/F39) -> 2.221074481
A40: Sentinel Lighting | B40: RTSR - Network | C40: kW | D40: 1.718774567 | F40: 700 | G40: =ROUND(D40*F40, 2) -> 1203.14 | H40: 0.001033295033 | I40: 1178.453101 | J40: =IF(ISERROR(I40/F40), 0, I40/F40) -> 1.683504431
A41: Street Lighting | B41: RTSR - Network | C41: kW | D41: 1.710062045 | F41: 6866 | G41: =ROUND(D41*F41, 2) -> 11741.29 | H41: 0.0100837946 | I41: 11500.3737 | J41: =IF(ISERROR(I41/F41), 0, I41/F41) -> 1.674974323
A42: Unmetered Scattered Load | B42: RTSR - Network | C42: kWh | D42: 0.005553385199 | E42: 472128.0937 | G42: =IF(ISERROR(D42*E42), 0, ROUND(D42*E42, 2)) -> 2621.91 | H42: 0.002251779991 | I42: 2568.11175 | J42: =IF(ISERROR(I42/E42), 0, I42/E42) -> 0.005439438543
A44: The purpose of this table is to update the re-aligned RTS Connection Rates to recover future wholesale connection costs.
A45: Rate Class | B45: Rate Description | C45: Unit | D45: Adjusted RTSR-Connection | E45: Loss Adjusted Billed kWh | F45: Billed kW | G45: Billed Amount | H45: Billed Amount % | I45: Current Wholesale Billing | J45: Proposed RTSR-Connection
A47: Residential | B47: RTSR - Connection | C47: kWh | D47: 0.004599508253 | E47: 82583874.16 | G47: =ROUND(D47*E47, 2) -> 379845.21 | H47: =G47/862456.2 -> 0.4404226093 | I47: =H47*forecast_wholesale_lineplus -> 374037.5394 | J47: =IF(ISERROR(I47/E47), 0, I47/E47) -> 0.004529183733
A48: General Service Less Than 50 kW | B48: RTSR - Connection | C48: kWh | D48: 0.004088451767 | E48: 32884065.44 | G48: =ROUND(D48*E48, 2) -> 134444.92 | H48: 0.1558860844 | I48: 132389.3148 | J48: =IF(ISERROR(I48/E48), 0, I48/E48) -> 0.004025941227
A49: General Service 50 to 4,999 kW | B49: RTSR - Connection | C49: kW | D49: 1.631190045 | F49: 206399 | G49: =ROUND(D49*F49, 2) -> 336675.99 | H49: 0.3903687979 | I49: 331528.3583 | J49: =IF(ISERROR(I49/F49), 0, I49/F49) -> 1.606249828
A50: Sentinel Lighting | B50: RTSR - Connection | C50: kW | D50: 1.287453479 | F50: 700 | G50: =ROUND(D50*F50, 2) -> 901.22 | H50: 0.001044945819 | I50: 887.4407322 | J50: =IF(ISERROR(I50/F50), 0, I50/F50) -> 1.267772475
A51: Street Lighting | B51: RTSR - Connection | C51: kW | D51: 1.261082845 | F51: 6866 | G51: =ROUND(D51*F51, 2) -> 8658.59 | H51: 0.01003945476 | I51: 8526.203867 | J51: =IF(ISERROR(I51/F51), 0, I51/F51) -> 1.241800738
A52: Unmetered Scattered Load | B52: RTSR - Connection | C52: kWh | D52: 0.00408844668 | E52: 472128.0937 | G52: =ROUND(D52*E52, 2) -> 1930.27 | H52: 0.00223810786 | I52: 1900.756998 | J52: =IF(ISERROR(I52/E52), 0, I52/E52) -> 0.00402593496

Sheet hidden1 (hidden)
A1: =IF('3. Rate Classes'!L17=1, '3. Rate Classes'!C17, "") -> Residential | B1: 1
A2: =IF('3. Rate Classes'!L18=1, '3. Rate Classes'!C18, "") -> General Service Less Than 50 kW | B2: 2
A3: =IF('3. Rate Classes'!L19=1, '3. Rate Classes'!C19, "") -> General Service 50 to 4,999 kW | B3: 3
A4: =IF('3. Rate Classes'!L20=1, '3. Rate Classes'!C20, "") -> Sentinel Lighting | B4: 4
A5: =IF('3. Rate Classes'!L21=1, '3. Rate Classes'!C21, "") -> Street Lighting | B5: 5
A6: =IF('3. Rate Classes'!L22=1, '3. Rate Classes'!C22, "") -> Unmetered Scattered Load | B6: 6
A7: =IF('3. Rate Classes'!L23=1, '3. Rate Classes'!C23, "") ->  | B7: 7
A8: =IF('3. Rate Classes'!L24=1, '3. Rate Classes'!C24, "") ->  | B8: 8
A9: =IF('3. Rate Classes'!L25=1, '3. Rate Classes'!C25, "") ->  | B9: 9
A10: =IF('3. Rate Classes'!L26=1, '3. Rate Classes'!C26, "") ->  | B10: 10
A11: =IF('3. Rate Classes'!L27=1, '3. Rate Classes'!C27, "") ->  | B11: 11
A12: =IF('3. Rate Classes'!L28=1, '3. Rate Classes'!C28, "") ->  | B12: 12
A13: =IF('3. Rate Classes'!L29=1, '3. Rate Classes'!C29, "") ->  | B13: 13
A14: =IF('3. Rate Classes'!L30=1, '3. Rate Classes'!C30, "") ->  | B14: 14
A15: =IF('3. Rate Classes'!L31=1, '3. Rate Classes'!C31, "") ->  | B15: 15
A16: =IF('3. Rate Classes'!L32=1, '3. Rate Classes'!C32, "") ->  | B16: 16
A17: =IF('3. Rate Classes'!L33=1, '3. Rate Classes'!C33, "") ->  | B17: 17
A18: =IF('3. Rate Classes'!L34=1, '3. Rate Classes'!C34, "") ->  | B18: 18
A19: =IF('3. Rate Classes'!L35=1, '3. Rate Classes'!C35, "") ->  | B19: 19
A20: =IF('3. Rate Classes'!L36=1, '3. Rate Classes'!C36, "") ->  | B20: 20
A21: =IF('3. Rate Classes'!L37=1, '3. Rate Classes'!C37, "") ->  | B21: 21
A22: =IF('3. Rate Classes'!L38=1, '3. Rate Classes'!C38, "") ->  | B22: 22
